[Event "*** SCC Grand Prix: Titled Tuesday Blitz"]
[Site "Chess.com"]
[Date "2020.06.02"]
[Round "5"]
[White "mbachez"]
[Black "Djager97"]
[Result "1-0"]
[WhiteElo "2534"]
[BlackElo "2377"]
[TimeControl "180+1"]
[EndTime "10:58:37 PDT"]
[Termination "mbachez won on time"]

1. e4 {[%clk 0:03:00.9]} 1... e5 {[%clk 0:02:59.6]} 2. Nf3 {[%clk 0:02:59.6]}
2... Nc6 {[%clk 0:03:00.2]} 3. Bb5 {[%clk 0:02:59.5]} 3... a6 {[%clk 0:03:00.1]}
4. Ba4 {[%clk 0:02:59.7]} 4... Nf6 {[%clk 0:02:59.7]} 5. d3 {[%clk 0:03:00]}
5... Bc5 {[%clk 0:02:51.2]} 6. c3 {[%clk 0:02:59.4]} 6... d6 {[%clk 0:02:47.3]}
7. h3 {[%clk 0:02:59.6]} 7... O-O {[%clk 0:02:44.1]} 8. O-O {[%clk 0:02:58.4]}
8... b5 {[%clk 0:02:37.2]} 9. Bb3 {[%clk 0:02:56]} 9... h6 {[%clk 0:02:23.4]}
10. Qe2 {[%clk 0:02:55.4]} 10... Bb6 {[%clk 0:02:20.2]} 11. Nbd2 {[%clk
0:02:53.5]} 11... Ne7 {[%clk 0:02:16.9]} 12. Rd1 {[%clk 0:02:53]} 12... Ng6
{[%clk 0:02:17]} 13. Nf1 {[%clk 0:02:50]} 13... Nh5 {[%clk 0:02:06.5]} 14. d4
{[%clk 0:02:16.4]} 14... Nhf4 {[%clk 0:02:04.8]} 15. Qe1 {[%clk 0:02:07.3]}
15... Qf6 {[%clk 0:02:04.4]} 16. N1h2 {[%clk 0:02:03]} 16... c5 {[%clk
0:01:45.6]} 17. dxe5 {[%clk 0:02:01.2]} 17... dxe5 {[%clk 0:01:44.2]} 18. c4
{[%clk 0:01:51.5]} 18... h5 {[%clk 0:01:22.8]} 19. Be3 {[%clk 0:01:45]} 19...
Bb7 {[%clk 0:01:20]} 20. Bc2 {[%clk 0:01:39.3]} 20... Rad8 {[%clk 0:01:08]} 21.
Qf1 {[%clk 0:01:24.5]} 21... b4 {[%clk 0:01:03.4]} 22. g3 {[%clk 0:01:17.7]}
22... Ne6 {[%clk 0:00:57]} 23. Rd5 {[%clk 0:01:16.2]} 23... Bxd5 {[%clk
0:00:53.1]} 24. exd5 {[%clk 0:01:13.1]} 24... Nd4 {[%clk 0:00:53.4]} 25. Be4
{[%clk 0:01:10.5]} 25... Rd7 {[%clk 0:00:26.2]} 26. Qd3 {[%clk 0:00:56.6]} 26...
Qd6 {[%clk 0:00:20.7]} 27. Bf5 {[%clk 0:00:46.3]} 27... Nxf5 {[%clk 0:00:20.2]}
28. Qxf5 {[%clk 0:00:46.2]} 28... h4 {[%clk 0:00:16.7]} 29. Qh5 {[%clk
0:00:43.6]} 29... Re8 {[%clk 0:00:11.5]} 30. Ng5 {[%clk 0:00:41.3]} 30... Nf8
{[%clk 0:00:11.4]} 31. Qxh4 {[%clk 0:00:40.9]} 31... Qg6 {[%clk 0:00:09.2]} 32.
g4 {[%clk 0:00:39.4]} 32... f6 {[%clk 0:00:09]} 33. Ngf3 {[%clk 0:00:39.4]}
33... Qe4 {[%clk 0:00:07.7]} 34. b3 {[%clk 0:00:37.3]} 34... a5 {[%clk
0:00:06.1]} 35. Nd2 {[%clk 0:00:36]} 35... Qd3 {[%clk 0:00:05.9]} 36. g5 {[%clk
0:00:35.2]} 36... f5 {[%clk 0:00:04.7]} 37. Ndf1 {[%clk 0:00:33.1]} 37... f4
{[%clk 0:00:04.9]} 38. Bd2 {[%clk 0:00:33.3]} 38... Ng6 {[%clk 0:00:04.3]} 39.
Qh5 {[%clk 0:00:32.5]} 39... Qf5 {[%clk 0:00:03]} 40. Ng4 {[%clk 0:00:32.2]}
40... e4 {[%clk 0:00:02.4]} 41. Re1 {[%clk 0:00:31]} 1-0

[Event "*** SCC Grand Prix: Titled Tuesday Blitz"]
[Site "Chess.com"]
[Date "2020.06.02"]
[Round "5"]
[White "doons21"]
[Black "Biranidun"]
[Result "0-1"]
[WhiteElo "2493"]
[BlackElo "2711"]
[TimeControl "180+1"]
[EndTime "10:58:38 PDT"]
[Termination "Biranidun won by resignation"]

1. e4 {[%clk 0:03:00.9]} 1... c5 {[%clk 0:02:59.8]} 2. c3 {[%clk 0:03:00.9]}
2... Nf6 {[%clk 0:02:59.4]} 3. e5 {[%clk 0:03:01]} 3... Nd5 {[%clk 0:02:59.8]}
4. d4 {[%clk 0:03:01.9]} 4... cxd4 {[%clk 0:02:59.8]} 5. Nf3 {[%clk 0:03:02.8]}
5... Nc6 {[%clk 0:02:58.3]} 6. Bc4 {[%clk 0:03:02.3]} 6... Nb6 {[%clk 0:02:57]}
7. Bb3 {[%clk 0:03:02.6]} 7... d5 {[%clk 0:02:57]} 8. exd6 {[%clk 0:03:03.4]}
8... Qxd6 {[%clk 0:02:56.3]} 9. O-O {[%clk 0:03:01.6]} 9... Be6 {[%clk
0:02:56.5]} 10. Bxe6 {[%clk 0:02:56.8]} 10... Qxe6 {[%clk 0:02:57.4]} 11. Nxd4
{[%clk 0:02:57.3]} 11... Nxd4 {[%clk 0:02:56]} 12. Qxd4 {[%clk 0:02:58.2]} 12...
Rd8 {[%clk 0:02:55.4]} 13. Qb4 {[%clk 0:02:58.6]} 13... Qc6 {[%clk 0:02:53.7]}
14. Qb3 {[%clk 0:02:59.1]} 14... e6 {[%clk 0:02:25.6]} 15. Nd2 {[%clk
0:02:58.2]} 15... Be7 {[%clk 0:02:20.8]} 16. Nf3 {[%clk 0:02:55.3]} 16... O-O
{[%clk 0:02:15.1]} 17. Bd2 {[%clk 0:02:24.7]} 17... Nc4 {[%clk 0:02:05.1]} 18.
Bf4 {[%clk 0:02:19.5]} 18... Bf6 {[%clk 0:02:01.4]} 19. Rad1 {[%clk 0:02:17.8]}
19... h6 {[%clk 0:01:52.5]} 20. Qc2 {[%clk 0:02:01.5]} 20... e5 {[%clk
0:01:48.2]} 21. Bg3 {[%clk 0:01:58.6]} 21... e4 {[%clk 0:01:35.5]} 22. Nd2
{[%clk 0:01:48.1]} 22... Nxd2 {[%clk 0:01:02.8]} 23. Rxd2 {[%clk 0:01:49]} 23...
Rxd2 {[%clk 0:01:03]} 24. Qxd2 {[%clk 0:01:48.4]} 24... Rd8 {[%clk 0:01:03.9]}
25. Qe2 {[%clk 0:01:44.2]} 25... Qd5 {[%clk 0:00:59.7]} 26. h3 {[%clk
0:00:45.1]} 26... Qxa2 {[%clk 0:00:44.4]} 27. Qxe4 {[%clk 0:00:45.3]} 27... Qxb2
{[%clk 0:00:44.7]} 28. Rb1 {[%clk 0:00:45.6]} 28... Qxc3 {[%clk 0:00:44.5]} 29.
Rxb7 {[%clk 0:00:45.4]} 29... a5 {[%clk 0:00:39.6]} 30. Kh2 {[%clk 0:00:36.8]}
30... Qd4 {[%clk 0:00:29.5]} 31. Qb1 {[%clk 0:00:25.1]} 31... h5 {[%clk
0:00:27]} 32. Qa2 {[%clk 0:00:21.6]} 32... Qd5 {[%clk 0:00:25.4]} 33. Qb1 {[%clk
0:00:14]} 33... h4 {[%clk 0:00:24.5]} 34. Bf4 {[%clk 0:00:14.4]} 34... g5 {[%clk
0:00:20.5]} 35. Bb8 {[%clk 0:00:05.6]} 35... Kg7 {[%clk 0:00:19.1]} 36. Rb5
{[%clk 0:00:05.4]} 36... Qd2 {[%clk 0:00:15.3]} 37. Be5 {[%clk 0:00:04.1]} 37...
Bxe5+ {[%clk 0:00:12.5]} 38. Rxe5 {[%clk 0:00:03.7]} 38... Qf4+ {[%clk 0:00:13]}
0-1

[Event "*** SCC Grand Prix: Titled Tuesday Blitz"]
[Site "Chess.com"]
[Date "2020.06.02"]
[Round "5"]
[White "Love_craft"]
[Black "barbara25"]
[Result "1-0"]
[WhiteElo "2460"]
[BlackElo "2223"]
[TimeControl "180+1"]
[EndTime "10:58:38 PDT"]
[Termination "Love_craft won by resignation"]

1. Nf3 {[%clk 0:02:59]} 1... Nf6 {[%clk 0:02:36.1]} 2. g3 {[%clk 0:02:36.4]}
2... e6 {[%clk 0:02:34.8]} 3. Bg2 {[%clk 0:02:36.4]} 3... d5 {[%clk 0:02:35.7]}
4. O-O {[%clk 0:02:37]} 4... c5 {[%clk 0:02:36.2]} 5. d3 {[%clk 0:02:37.6]} 5...
Nc6 {[%clk 0:02:36.7]} 6. Nbd2 {[%clk 0:02:38.3]} 6... Bd6 {[%clk 0:02:36.9]} 7.
e4 {[%clk 0:02:38.9]} 7... Qc7 {[%clk 0:02:36.8]} 8. Re1 {[%clk 0:02:38]} 8...
O-O {[%clk 0:02:36.5]} 9. c3 {[%clk 0:02:38]} 9... e5 {[%clk 0:02:30.9]} 10.
exd5 {[%clk 0:02:37.4]} 10... Nxd5 {[%clk 0:02:30.4]} 11. Nc4 {[%clk 0:02:38.3]}
11... Re8 {[%clk 0:02:27.7]} 12. Ng5 {[%clk 0:02:24.8]} 12... Nf6 {[%clk
0:02:21.5]} 13. Nxd6 {[%clk 0:02:22]} 13... Qxd6 {[%clk 0:02:20.7]} 14. Ne4
{[%clk 0:02:22.9]} 14... Nxe4 {[%clk 0:02:20.4]} 15. dxe4 {[%clk 0:02:23.5]}
15... Qxd1 {[%clk 0:02:20]} 16. Rxd1 {[%clk 0:02:24.4]} 16... Be6 {[%clk
0:02:20.1]} 17. Be3 {[%clk 0:02:23]} 17... b6 {[%clk 0:02:19.7]} 18. Rd2 {[%clk
0:02:20.6]} 18... Rad8 {[%clk 0:02:19]} 19. f3 {[%clk 0:01:58.9]} 19... Rxd2
{[%clk 0:02:16.6]} 20. Bxd2 {[%clk 0:01:59.8]} 20... Rd8 {[%clk 0:02:17.2]} 21.
Be3 {[%clk 0:01:59.3]} 21... f6 {[%clk 0:02:16.8]} 22. Bf1 {[%clk 0:01:51.4]}
22... Kf7 {[%clk 0:02:15.9]} 23. Kf2 {[%clk 0:01:51]} 23... Ke7 {[%clk
0:02:15.6]} 24. b3 {[%clk 0:01:39.3]} 24... Nb8 {[%clk 0:02:06.6]} 25. Be2
{[%clk 0:01:35.5]} 25... Nc6 {[%clk 0:01:52.2]} 26. h4 {[%clk 0:01:34.2]} 26...
Na5 {[%clk 0:01:51.9]} 27. f4 {[%clk 0:01:14.7]} 27... exf4 {[%clk 0:01:45.2]}
28. gxf4 {[%clk 0:01:15.6]} 28... c4 {[%clk 0:01:28.7]} 29. b4 {[%clk 0:01:15]}
29... Nb7 {[%clk 0:01:26.2]} 30. Rg1 {[%clk 0:01:10.7]} 30... Kf8 {[%clk
0:01:22.7]} 31. a4 {[%clk 0:00:46.9]} 31... Nd6 {[%clk 0:01:22.1]} 32. Bf3
{[%clk 0:00:42.5]} 32... f5 {[%clk 0:01:13.3]} 33. e5 {[%clk 0:00:42.7]} 33...
Ne4+ {[%clk 0:01:13.2]} 34. Bxe4 {[%clk 0:00:43]} 34... fxe4 {[%clk 0:01:13.3]}
35. Bd4 {[%clk 0:00:41.3]} 35... g6 {[%clk 0:01:12.9]} 36. Ke3 {[%clk
0:00:35.6]} 36... Bf5 {[%clk 0:01:07]} 37. Ra1 {[%clk 0:00:35.4]} 37... h5
{[%clk 0:01:06.1]} 38. a5 {[%clk 0:00:35.1]} 38... Rb8 {[%clk 0:00:39.7]} 39.
axb6 {[%clk 0:00:33]} 39... axb6 {[%clk 0:00:39.7]} 40. b5 {[%clk 0:00:30.7]}
40... Rb7 {[%clk 0:00:28.7]} 41. Ra8+ {[%clk 0:00:28]} 41... Ke7 {[%clk
0:00:24.5]} 42. Rh8 {[%clk 0:00:24.6]} 42... Ke6 {[%clk 0:00:23.7]} 43. Rc8
{[%clk 0:00:24.4]} 43... Kd5 {[%clk 0:00:19.4]} 44. Rc6 {[%clk 0:00:23.7]} 1-0

[Event "*** SCC Grand Prix: Titled Tuesday Blitz"]
[Site "Chess.com"]
[Date "2020.06.02"]
[Round "5"]
[White "yonaltimur"]
[Black "checkmatequen"]
[Result "0-1"]
[WhiteElo "1494"]
[BlackElo "2264"]
[TimeControl "180+1"]
[EndTime "10:58:38 PDT"]
[Termination "checkmatequen won on time"]

1. e4 {[%clk 0:02:33.4]} 1... c5 {[%clk 0:02:52]} 2. Nf3 {[%clk 0:02:31]} 2...
e6 {[%clk 0:02:51.9]} 3. d4 {[%clk 0:02:11.8]} 3... cxd4 {[%clk 0:02:52.8]} 4.
Nxd4 {[%clk 0:02:10.9]} 4... a6 {[%clk 0:02:52]} 5. Bd3 {[%clk 0:02:05]} 5...
Nc6 {[%clk 0:02:51]} 6. Nxc6 {[%clk 0:01:48.3]} 6... dxc6 {[%clk 0:02:51.9]} 7.
O-O {[%clk 0:01:46.6]} 7... e5 {[%clk 0:02:50.4]} 8. Be3 {[%clk 0:01:37.1]} 8...
Nf6 {[%clk 0:02:39.7]} 9. f3 {[%clk 0:01:30.4]} 9... Be7 {[%clk 0:02:29]} 10.
Nd2 {[%clk 0:01:28.7]} 10... Nh5 {[%clk 0:02:22.6]} 11. Nc4 {[%clk 0:01:17.7]}
11... Bg5 {[%clk 0:02:08.8]} 12. Bf2 {[%clk 0:01:08.1]} 12... Qf6 {[%clk
0:01:53.8]} 13. Bc5 {[%clk 0:01:00.3]} 13... Nf4 {[%clk 0:01:20.1]} 14. Nd6+
{[%clk 0:00:55.2]} 14... Kd7 {[%clk 0:01:12.6]} 15. Bc4 {[%clk 0:00:46.8]} 15...
Kc7 {[%clk 0:01:03.7]} 16. Nxf7 {[%clk 0:00:41.8]} 16... Re8 {[%clk 0:00:37.8]}
17. Bd6+ {[%clk 0:00:18.8]} 17... Kb6 {[%clk 0:00:36.7]} 18. Qe1 {[%clk
0:00:18.4]} 18... c5 {[%clk 0:00:29.5]} 19. b4 {[%clk 0:00:16.3]} 19... Be6
{[%clk 0:00:22.7]} 20. bxc5+ {[%clk 0:00:14.8]} 20... Kc6 {[%clk 0:00:22]} 21.
Bxe6 {[%clk 0:00:12.3]} 21... Nxe6 {[%clk 0:00:20.5]} 22. Qa5 {[%clk 0:00:09.7]}
22... Be3+ {[%clk 0:00:15.5]} 23. Kh1 {[%clk 0:00:06.3]} 23... Qxf7 {[%clk
0:00:13.9]} 24. Qb6+ {[%clk 0:00:05.9]} 24... Kd7 {[%clk 0:00:13.9]} 25. Qxb7+
{[%clk 0:00:06]} 25... Nc7 {[%clk 0:00:12]} 26. Qxc7+ {[%clk 0:00:05.8]} 26...
Ke6 {[%clk 0:00:12.5]} 27. Qc6 {[%clk 0:00:05.2]} 27... Rac8 {[%clk 0:00:11.8]}
28. Qd5+ {[%clk 0:00:04.3]} 28... Kf6 {[%clk 0:00:10.8]} 29. c4 {[%clk 0:00:02]}
29... Qxd5 {[%clk 0:00:10]} 0-1

[Event "*** SCC Grand Prix: Titled Tuesday Blitz"]
[Site "Chess.com"]
[Date "2020.06.02"]
[Round "5"]
[White "SketchyMoves"]
[Black "ram1zan"]
[Result "1-0"]
[WhiteElo "2648"]
[BlackElo "2833"]
[TimeControl "180+1"]
[EndTime "10:58:41 PDT"]
[Termination "SketchyMoves won by checkmate"]

1. e4 {[%clk 0:03:00.9]} 1... d5 {[%clk 0:03:00.3]} 2. exd5 {[%clk 0:03:00.4]}
2... Nf6 {[%clk 0:03:00.1]} 3. Nc3 {[%clk 0:02:59.5]} 3... Nxd5 {[%clk
0:03:00.6]} 4. g3 {[%clk 0:02:58.4]} 4... c5 {[%clk 0:02:43]} 5. Bg2 {[%clk
0:02:57.6]} 5... Nc7 {[%clk 0:02:43.6]} 6. Nge2 {[%clk 0:02:57.2]} 6... Nc6
{[%clk 0:02:43.3]} 7. d3 {[%clk 0:02:52]} 7... g6 {[%clk 0:02:42.8]} 8. Be3
{[%clk 0:02:51.3]} 8... Ne6 {[%clk 0:02:42.1]} 9. Ne4 {[%clk 0:02:38.8]} 9...
Bg7 {[%clk 0:02:41.6]} 10. c3 {[%clk 0:02:33.4]} 10... Qa5 {[%clk 0:02:16.2]}
11. O-O {[%clk 0:02:27.9]} 11... O-O {[%clk 0:02:16.1]} 12. Nxc5 {[%clk
0:02:06.9]} 12... Nxc5 {[%clk 0:02:11.7]} 13. Bxc6 {[%clk 0:02:06.6]} 13... Nxd3
{[%clk 0:01:51.2]} 14. Qxd3 {[%clk 0:01:57.2]} 14... bxc6 {[%clk 0:01:50.2]} 15.
Rfe1 {[%clk 0:01:49.5]} 15... Rd8 {[%clk 0:01:20.1]} 16. Qc4 {[%clk 0:01:42.3]}
16... Qd5 {[%clk 0:01:19.2]} 17. Qxd5 {[%clk 0:01:27.8]} 17... cxd5 {[%clk
0:01:18.9]} 18. Bc5 {[%clk 0:01:18.6]} 18... e5 {[%clk 0:01:17.3]} 19. f4 {[%clk
0:01:16.8]} 19... f6 {[%clk 0:01:13.5]} 20. Rad1 {[%clk 0:01:12.7]} 20... Bb7
{[%clk 0:01:03.2]} 21. fxe5 {[%clk 0:01:06.5]} 21... fxe5 {[%clk 0:01:03.2]} 22.
Nc1 {[%clk 0:01:07.1]} 22... Rac8 {[%clk 0:00:52.5]} 23. b4 {[%clk 0:01:05.9]}
23... Ba6 {[%clk 0:00:36.8]} 24. Nd3 {[%clk 0:00:59.5]} 24... e4 {[%clk
0:00:22.3]} 25. Nf4 {[%clk 0:00:55.7]} 25... Bc4 {[%clk 0:00:21.5]} 26. Bd4
{[%clk 0:00:29.8]} 26... Bxd4+ {[%clk 0:00:19.7]} 27. Rxd4 {[%clk 0:00:29.1]}
27... Bxa2 {[%clk 0:00:19.7]} 28. Ra1 {[%clk 0:00:29]} 28... Bb3 {[%clk
0:00:18.4]} 29. Rxa7 {[%clk 0:00:27.1]} 29... Rxc3 {[%clk 0:00:18.5]} 30. b5
{[%clk 0:00:20.5]} 30... e3 {[%clk 0:00:09.7]} 31. b6 {[%clk 0:00:19.8]} 31...
Bc4 {[%clk 0:00:04.9]} 32. b7 {[%clk 0:00:17.9]} 32... Rb3 {[%clk 0:00:01.4]}
33. Rxc4 {[%clk 0:00:02]} 33... dxc4 {[%clk 0:00:01.3]} 34. Ra8 {[%clk
0:00:02.4]} 34... Rf8 {[%clk 0:00:01.9]} 35. Ne6 {[%clk 0:00:02.9]} 35... e2
{[%clk 0:00:01.3]} 36. Rxf8# {[%clk 0:00:02]} 1-0

[Event "*** SCC Grand Prix: Titled Tuesday Blitz"]
[Site "Chess.com"]
[Date "2020.06.02"]
[Round "5"]
[White "mortngabriel"]
[Black "davekoenig"]
[Result "1-0"]
[WhiteElo "2454"]
[BlackElo "2156"]
[TimeControl "180+1"]
[EndTime "10:58:43 PDT"]
[Termination "mortngabriel won on time"]

1. Nf3 {[%clk 0:02:47.5]} 1... d5 {[%clk 0:02:59.4]} 2. e3 {[%clk 0:02:45.3]}
2... Nf6 {[%clk 0:02:57.6]} 3. c4 {[%clk 0:02:44.3]} 3... c6 {[%clk 0:02:56.8]}
4. Nc3 {[%clk 0:02:43.8]} 4... e6 {[%clk 0:02:47]} 5. d4 {[%clk 0:02:43.5]} 5...
Nbd7 {[%clk 0:02:32.5]} 6. Bd3 {[%clk 0:02:42.6]} 6... dxc4 {[%clk 0:02:26.6]}
7. Bxc4 {[%clk 0:02:43.5]} 7... b5 {[%clk 0:02:26.6]} 8. Bd3 {[%clk 0:02:40.6]}
8... Bb7 {[%clk 0:02:20.1]} 9. O-O {[%clk 0:02:33.4]} 9... a6 {[%clk 0:02:18.7]}
10. e4 {[%clk 0:02:32.5]} 10... c5 {[%clk 0:02:16.7]} 11. d5 {[%clk 0:02:32.4]}
11... c4 {[%clk 0:02:10.4]} 12. Bc2 {[%clk 0:02:25.2]} 12... Nc5 {[%clk
0:02:04.6]} 13. Re1 {[%clk 0:02:09.4]} 13... Be7 {[%clk 0:02:03.5]} 14. d6
{[%clk 0:02:06.5]} 14... Bxd6 {[%clk 0:01:43.4]} 15. e5 {[%clk 0:02:05.6]} 15...
Nd5 {[%clk 0:01:30.5]} 16. exd6 {[%clk 0:01:58.5]} 16... Qxd6 {[%clk 0:01:30.6]}
17. Qd4 {[%clk 0:01:28.4]} 17... O-O {[%clk 0:01:27]} 18. Ng5 {[%clk 0:01:11.5]}
18... h6 {[%clk 0:01:18]} 19. Nge4 {[%clk 0:01:09.6]} 19... Nxe4 {[%clk
0:01:17.2]} 20. Nxe4 {[%clk 0:01:10.5]} 20... Qc6 {[%clk 0:01:14.3]} 21. Ng3
{[%clk 0:00:53.1]} 21... Rad8 {[%clk 0:01:04]} 22. Be4 {[%clk 0:00:50.4]} 22...
Qc7 {[%clk 0:00:42.3]} 23. Qd1 {[%clk 0:00:18.4]} 23... Nb4 {[%clk 0:00:21.3]}
24. Qf3 {[%clk 0:00:16.3]} 24... Bxe4 {[%clk 0:00:20.7]} 25. Qxe4 {[%clk
0:00:14.3]} 25... Nd3 {[%clk 0:00:20.7]} 26. Rf1 {[%clk 0:00:09.9]} 26... Rd5
{[%clk 0:00:18.8]} 27. b3 {[%clk 0:00:05]} 27... Rc8 {[%clk 0:00:16.7]} 28. Be3
{[%clk 0:00:04.3]} 28... c3 {[%clk 0:00:14]} 29. Ne2 {[%clk 0:00:03.6]} 29... b4
{[%clk 0:00:08]} 30. Nf4 {[%clk 0:00:03.9]} 30... Nxf4 {[%clk 0:00:07.4]} 31.
Bxf4 {[%clk 0:00:04.8]} 31... Qb6 {[%clk 0:00:05.3]} 32. Rfd1 {[%clk 0:00:04.7]}
32... Rcd8 {[%clk 0:00:03.8]} 33. Rxd5 {[%clk 0:00:04.3]} 33... Rxd5 {[%clk
0:00:03.6]} 34. Be3 {[%clk 0:00:04.7]} 34... Qb5 {[%clk 0:00:02.6]} 35. a4
{[%clk 0:00:03.6]} 35... bxa3 {[%clk 0:00:01.5]} 36. Qc4 {[%clk 0:00:03.3]} 1-0

[Event "*** SCC Grand Prix: Titled Tuesday Blitz"]
[Site "Chess.com"]
[Date "2020.06.02"]
[Round "5"]
[White "Kirill_Klukin"]
[Black "Sanan_Sjugirov"]
[Result "0-1"]
[WhiteElo "2726"]
[BlackElo "2908"]
[TimeControl "180+1"]
[EndTime "10:58:45 PDT"]
[Termination "Sanan_Sjugirov won by checkmate"]

1. d4 {[%clk 0:03:00.9]} 1... Nf6 {[%clk 0:02:59.6]} 2. Nf3 {[%clk 0:03:00.9]}
2... g6 {[%clk 0:02:59.2]} 3. e3 {[%clk 0:02:57.9]} 3... Bg7 {[%clk 0:02:59]} 4.
Be2 {[%clk 0:02:57.9]} 4... O-O {[%clk 0:02:58.8]} 5. O-O {[%clk 0:02:58.5]}
5... d6 {[%clk 0:02:47.9]} 6. c4 {[%clk 0:02:52]} 6... Nbd7 {[%clk 0:02:34.5]}
7. Nc3 {[%clk 0:02:50.9]} 7... e5 {[%clk 0:02:29]} 8. Qc2 {[%clk 0:02:50.9]}
8... Re8 {[%clk 0:02:27]} 9. b4 {[%clk 0:02:47.5]} 9... exd4 {[%clk 0:02:08.6]}
10. exd4 {[%clk 0:02:47]} 10... a5 {[%clk 0:02:04.5]} 11. b5 {[%clk 0:02:46.3]}
11... d5 {[%clk 0:02:04.1]} 12. c5 {[%clk 0:02:38.1]} 12... Ne4 {[%clk
0:02:01.1]} 13. Be3 {[%clk 0:02:33.1]} 13... Ndxc5 {[%clk 0:01:53.9]} 14. Nxd5
{[%clk 0:01:56]} 14... Qxd5 {[%clk 0:01:28.9]} 15. dxc5 {[%clk 0:01:55.9]} 15...
Nc3 {[%clk 0:01:18.1]} 16. Bd3 {[%clk 0:01:33.6]} 16... Bg4 {[%clk 0:01:16.1]}
17. Nd2 {[%clk 0:01:12.5]} 17... Ne2+ {[%clk 0:01:01.3]} 18. Kh1 {[%clk
0:01:06.9]} 18... Rad8 {[%clk 0:00:42.1]} 19. Be4 {[%clk 0:00:52.6]} 19... Qh5
{[%clk 0:00:38.1]} 20. Rae1 {[%clk 0:00:38.8]} 20... Be5 {[%clk 0:00:33.9]} 21.
f4 {[%clk 0:00:12.9]} 21... Ng3+ {[%clk 0:00:33.3]} 22. Kg1 {[%clk 0:00:13.2]}
22... Nxf1 {[%clk 0:00:33.9]} 23. Rxf1 {[%clk 0:00:11.8]} 23... Bd4 {[%clk
0:00:30.5]} 24. Bxd4 {[%clk 0:00:12]} 24... Rxd4 {[%clk 0:00:31.4]} 25. h3
{[%clk 0:00:12.5]} 25... Bc8 {[%clk 0:00:17.4]} 26. Rf2 {[%clk 0:00:09]} 26...
Qh4 {[%clk 0:00:10.8]} 27. Bf3 {[%clk 0:00:02.7]} 27... Re1+ {[%clk 0:00:08.6]}
28. Nf1 {[%clk 0:00:03.3]} 28... Qe7 {[%clk 0:00:06.1]} 29. Qc3 {[%clk
0:00:03.5]} 29... Rd8 {[%clk 0:00:05.6]} 30. c6 {[%clk 0:00:03.9]} 30... b6
{[%clk 0:00:05.5]} 31. Qb2 {[%clk 0:00:02.9]} 31... h5 {[%clk 0:00:05.6]} 32.
Kh2 {[%clk 0:00:03.1]} 32... h4 {[%clk 0:00:06]} 33. Nd2 {[%clk 0:00:03.4]}
33... Qe3 {[%clk 0:00:05.4]} 34. Ne4 {[%clk 0:00:03.6]} 34... Qd4 {[%clk
0:00:05.4]} 35. Qc2 {[%clk 0:00:02.8]} 35... Qa1 {[%clk 0:00:04.7]} 36. Ng5
{[%clk 0:00:02.5]} 36... Rh1# {[%clk 0:00:04.1]} 0-1

[Event "*** SCC Grand Prix: Titled Tuesday Blitz"]
[Site "Chess.com"]
[Date "2020.06.02"]
[Round "5"]
[White "chito89"]
[Black "Konavets"]
[Result "1-0"]
[WhiteElo "2819"]
[BlackElo "2967"]
[TimeControl "180+1"]
[EndTime "10:58:46 PDT"]
[Termination "chito89 won by checkmate"]

1. c4 {[%clk 0:02:56]} 1... g6 {[%clk 0:02:59.6]} 2. Nc3 {[%clk 0:02:53.4]} 2...
Bg7 {[%clk 0:03:00.5]} 3. g3 {[%clk 0:02:53.8]} 3... d6 {[%clk 0:03:01.3]} 4.
Bg2 {[%clk 0:02:54.2]} 4... Nf6 {[%clk 0:03:01.9]} 5. e4 {[%clk 0:02:54.6]} 5...
O-O {[%clk 0:02:54.9]} 6. Nge2 {[%clk 0:02:51.7]} 6... c6 {[%clk 0:02:55.6]} 7.
d3 {[%clk 0:02:42.9]} 7... a6 {[%clk 0:02:55.5]} 8. O-O {[%clk 0:02:42.5]} 8...
b5 {[%clk 0:02:55.1]} 9. h3 {[%clk 0:02:42.9]} 9... Bb7 {[%clk 0:02:54]} 10. Be3
{[%clk 0:02:41.9]} 10... Nbd7 {[%clk 0:02:53.7]} 11. Qd2 {[%clk 0:02:41]} 11...
Re8 {[%clk 0:02:44.9]} 12. g4 {[%clk 0:02:02.9]} 12... Rb8 {[%clk 0:02:42.7]}
13. Ng3 {[%clk 0:02:01.5]} 13... Nb6 {[%clk 0:02:05.9]} 14. g5 {[%clk
0:01:27.7]} 14... Nfd7 {[%clk 0:02:04]} 15. b3 {[%clk 0:01:28.2]} 15... b4
{[%clk 0:01:36.8]} 16. Nce2 {[%clk 0:01:23.5]} 16... Bxa1 {[%clk 0:01:36.9]} 17.
Rxa1 {[%clk 0:01:24.4]} 17... c5 {[%clk 0:01:37.7]} 18. d4 {[%clk 0:01:19.7]}
18... cxd4 {[%clk 0:01:31.4]} 19. Qxd4 {[%clk 0:01:04.3]} 19... Nc5 {[%clk
0:01:28.7]} 20. Rd1 {[%clk 0:01:00]} 20... Qc7 {[%clk 0:01:25.5]} 21. f4 {[%clk
0:00:54.1]} 21... Rbd8 {[%clk 0:01:23.8]} 22. f5 {[%clk 0:00:47.4]} 22... e5
{[%clk 0:01:14.7]} 23. Qd2 {[%clk 0:00:42.3]} 23... gxf5 {[%clk 0:01:14.9]} 24.
Nxf5 {[%clk 0:00:21.1]} 24... Bxe4 {[%clk 0:01:13.9]} 25. Neg3 {[%clk
0:00:18.5]} 25... Bxg2 {[%clk 0:00:57.9]} 26. Qxg2 {[%clk 0:00:18.2]} 26... Re6
{[%clk 0:00:50.6]} 27. Nh5 {[%clk 0:00:17.7]} 27... Kh8 {[%clk 0:00:44.4]} 28.
Nf6 {[%clk 0:00:09.1]} 28... Nbd7 {[%clk 0:00:40.5]} 29. Nd5 {[%clk 0:00:07.8]}
29... Qb7 {[%clk 0:00:38.9]} 30. Qf3 {[%clk 0:00:08.3]} 30... Rg8 {[%clk
0:00:34.6]} 31. Kh2 {[%clk 0:00:08.8]} 31... Nf8 {[%clk 0:00:10.8]} 32. Rf1
{[%clk 0:00:08.7]} 32... Rgg6 {[%clk 0:00:06.5]} 33. Nxd6 {[%clk 0:00:07.8]}
33... Rxd6 {[%clk 0:00:05.5]} 34. Bxc5 {[%clk 0:00:08.2]} 34... Rd8 {[%clk
0:00:05.8]} 35. Be7 {[%clk 0:00:02.6]} 35... Re8 {[%clk 0:00:05.3]} 36. Qxf7
{[%clk 0:00:02.4]} 36... Qc6 {[%clk 0:00:02.8]} 37. Bf6+ {[%clk 0:00:02.6]}
37... Rxf6 {[%clk 0:00:03.3]} 38. Nxf6 {[%clk 0:00:03.4]} 38... Rd8 {[%clk
0:00:01.8]} 39. Qg8# {[%clk 0:00:03.6]} 1-0